bitfinex-derivatives/quotes_ETHF0:USTF0_20250712
["timestamp","ask_amount","ask_price","bid_price","bid_amount"]
[1752335982706,4.8367,2915.8,2915.7,8.5605]
[1752335983006,5.52237,2915.8,2915.7,8.5605]
[1752335983906,0.68564,2916.0,2915.9,0.68565]
[1752335984115,4.38834,2916.0,2915.9,3.16795]
[1752335984407,3.7027,2916.0,2915.9,5.34105]
[1752335984610,4.6835,2916.0,2915.9,5.34105]
[1752335984807,5.36913,2916.0,2915.9,5.34105]
[1752335985007,4.6835,2916.0,2915.9,5.34105]
[1752335986211,3.7027,2916.0,2915.9,5.34105]
[1752335986607,4.652,2916.2,2916.1,2.2326]
[1752335986803,4.652,2916.2,2916.1,30.63233855]
[1752335987009,4.652,2916.2,2916.1,29.5262]
[1752335987210,5.52026943,2916.2,2916.1,30.63233855]
[1752335988511,5.52026943,2916.2,2916.1,29.5262]
[1752335988712,6.20584943,2916.2,2916.1,29.5262]
[1752335988916,4.57096943,2916.2,2916.1,30.63233855]
[1752335989215,3.7027,2916.2,2916.1,30.63233855]
[1752335989615,4.652,2916.4,2916.3,5.37016]
[1752335989816,5.52043448,2916.4,2916.3,29.52216]
[1752335990009,5.52043448,2916.4,2916.3,30.62829855]
[1752335990210,3.82189,2916.6,2916.5,0.68551]
[1752335990413,6.20577141,2916.6,2916.5,27.34901]
[1752335990809,6.20577141,2916.6,2916.5,30.62824855]
[1752335990810,0.86828141,2916.6,2916.5,30.62824855]
[1752335991212,4.652,2916.8,2916.7,5.37006]
[1752335991414,5.33735,2917.2,2917.1,2.5115]
[1752335991716,5.51987887,2917.2,2917.1,27.34787]
[1752335991913,6.20521887,2917.2,2917.1,24.151]
[1752335992119,6.20521887,2917.2,2917.1,24.83637]
[1752335992710,1.5156,2917.0,2916.6,5.3809]
[1752335992917,4.652,2916.8,2916.7,27.34496]
[1752335993323,4.652,2916.8,2916.7,29.51806]
[1752335993519,4.652,2916.9,2916.8,5.37004]
[1752335993818,5.33741,2916.9,2916.8,3.19694]
[1752335994016,4.652,2916.9,2916.8,27.34194]
[1752335994211,2.1871,2916.9,2916.8,29.51504]
[1752335994419,3.7027,2916.9,2916.8,29.51504]
[1752335994922,3.1364,2917.2,2917.1,4.6846]
[1752335995122,5.51917134,2917.2,2917.1,29.51497]
[1752335995627,3.05427134,2917.2,2917.1,29.51497]
[1752335995821,3.7027,2917.2,2917.1,29.51497]
[1752335996117,4.652,2917.2,2917.1,29.51497]
[1752335996324,4.652,2917.5,2917.4,3.1968]
[1752335996523,5.51872191,2917.5,2917.4,27.3398]
[1752335996819,5.33727,2917.5,2917.4,25.69]
[1752335997019,1.5156,2917.2,2917.1,4.1723]
[1752335997218,4.652,2917.2,2917.1,29.58217]
[1752335997522,4.652,2917.2,2917.1,30.54667]
[1752335998218,7.8598,2917.7,2917.3,2.1731]
[1752335998418,5.33731,2917.4,2917.3,24.138]
[1752335998613,4.652,2917.2,2917.1,3.2078]
[1752335998823,4.652,2917.2,2917.1,28.03117]
[1752335999022,4.652,2917.2,2917.1,29.57817]
[1752335999223,4.652,2917.2,2917.1,5.44017]
[1752335999519,4.652,2917.2,2917.1,29.57817]
[1752335999921,4.652,2917.2,2917.1,30.54267]
[1752336000319,4.652,2917.2,2917.1,5.44017]
[1752336000622,4.652,2917.2,2917.1,3.89317]
[1752336000927,4.652,2917.2,2917.1,3.2078]
[1752336001224,1.5156,2917.2,2916.8,3.2078]
[1752336001428,1.5156,2916.9,2916.8,4.7548]
[1752336001624,4.652,2916.9,2916.8,5.7193]
[1752336001925,4.652,2916.9,2916.8,29.8533]
[1752336002126,4.652,2916.9,2916.8,5.7193]
[1752336003127,4.652,2916.9,2916.8,6.40474]
[1752336004025,4.652,2916.9,2916.8,30.53774]
[1752336004428,4.652,2916.9,2916.8,29.57324]
[1752336004821,5.33741,2916.9,2916.8,4.7548]
[1752336005021,5.33741,2916.9,2916.8,3.89324]
[1752336005222,5.33741,2916.9,2916.8,5.44024]
[1752336005420,5.33741,2916.9,2916.8,3.2078]
[1752336006025,5.33749,2916.6,2916.5,28.02228]
[1752336006226,5.33749,2916.6,2916.5,3.89328]
[1752336006427,1.5156,2916.3,2916.2,5.7193]
[1752336006629,4.652,2916.3,2916.2,3.19708]
[1752336006819,4.652,2916.8,2916.7,1.547]
[1752336007024,4.652,2916.8,2916.7,3.19696]
[1752336007218,5.33744,2916.8,2916.7,3.19696]
[1752336007428,5.33744,2916.8,2916.7,2.23246]
[1752336007625,3.2078,2917.1,2916.2,5.3342]
[1752336007626,2.1871,2916.6,2916.2,5.3342]
[1752336007830,5.33755,2916.4,2916.3,26.6395]
[1752336008027,5.33755,2916.4,2916.3,29.56833]
[1752336008332,4.652,2916.4,2916.3,30.53283]
[1752336008530,4.652,2916.4,2916.3,6.40483]
[1752336008930,5.33753,2916.4,2916.3,6.40483]
[1752336009126,5.33753,2916.4,2916.3,5.44033]
[1752336009327,5.33756,2916.3,2916.2,2.23257]
[1752336009527,5.33756,2916.3,2916.2,0.68557]
[1752336010424,4.652,2916.3,2916.2,0.68557]
[1752336011428,4.652,2916.3,2916.2,2.23257]
[1752336011729,0.68555,2916.4,2916.0,27.3338]
[1752336011730,3.7027,2916.6,2916.5,5.32341]
[1752336012129,4.652,2916.6,2916.5,5.32341]
[1752336012530,4.652,2917.1,2917.0,2.23239]
[1752336012728,4.652,2917.1,2917.0,3.19689]
[1752336013726,5.33737,2917.1,2917.0,2.23239]
[1752336013933,4.6888,2916.9,2916.8,5.37134]
[1752336014134,4.6888,2916.9,2916.8,6.33584]
[1752336014327,4.6888,2916.9,2916.8,5.37134]
[1752336014529,2.1865,2916.8,2916.7,0.68546]
[1752336014723,1.553,2917.0,2916.9,2.16351]
[1752336014925,3.7395,2917.0,2916.9,3.12801]
[1752336015132,4.6888,2917.0,2916.9,5.21901]
[1752336015333,3.1421,2917.2,2917.1,2.16347]
[1752336015632,4.6951,2917.2,2917.1,2.16347]
[1752336015930,5.38044,2917.2,2917.1,2.16347]
[1752336016336,5.38044,2917.2,2917.1,0.68537]
[1752336016632,4.6951,2917.0,2916.9,0.6854]
[1752336016829,5.38049,2917.0,2916.9,2.1635]
[1752336017030,5.38049,2917.0,2916.9,0.6854]
[1752336017729,4.6951,2917.0,2916.9,0.6854]
[1752336017925,5.38049,2917.0,2916.9,0.6854]
[1752336019433,5.7164,2917.4,2917.3,0.68532]
[1752336019737,4.6951,2917.4,2917.3,3.06822]
[1752336020127,0.9556,2917.2,2916.9,3.2078]
[1752336020333,4.6951,2917.0,2916.9,5.37131]
[1752336020628,4.6951,2917.0,2916.9,30.39411]
[1752336021031,4.6951,2917.5,2917.4,0.68528]
[1752336021236,5.5643765,2917.5,2917.4,2.16338]
[1752336021539,4.6951,2917.5,2917.4,2.16338]
[1752336023142,5.38037,2917.5,2917.4,0.68528]
[1752336023734,5.38041,2917.4,2917.3,0.68532]
[1752336024540,5.38041,2917.4,2917.3,2.16342]
[1752336024740,4.6951,2917.4,2917.3,2.16342]
[1752336024943,5.3804,2917.4,2917.3,0.68532]
[1752336025333,4.6951,2917.4,2917.3,2.16342]
[1752336025531,5.3804,2917.4,2917.3,2.16342]
[1752336025846,5.3804,2917.4,2917.3,0.68532]
[1752336027545,5.3804,2917.4,2916.9,5.37131]
[1752336027546,4.6951,2917.0,2916.9,5.37131]
[1752336027751,4.6951,2917.0,2916.9,3.06831]
[1752336028040,4.6951,2917.0,2916.9,0.68541]
[1752336028248,5.38049,2917.0,2916.9,0.68541]
[1752336028746,3.1421,2917.0,2916.9,3.06831]
[1752336028947,4.6951,2917.0,2916.9,3.06831]
[1752336029242,3.7395,2917.0,2916.9,5.15931]
[1752336029543,4.42479,2917.5,2917.4,0.68528]
[1752336030046,5.38039,2917.5,2917.4,0.68528]
[1752336030444,5.38039,2917.5,2917.4,3.06818]
[1752336030637,4.6951,2917.5,2917.4,3.06818]
[1752336032048,4.6951,2917.5,2917.4,5.15918]
[1752336033752,5.38037,2917.5,2917.4,5.15918]
[1752336034058,4.6951,2917.2,2917.1,2.3829]
[1752336034258,4.6951,2917.2,2917.1,3.06827]
[1752336035959,4.6951,2917.2,2917.1,0.68537]
[1752336037059,4.6951,2917.2,2917.1,2.16347]
[1752336038761,4.6951,2917.2,2917.1,3.06827]
[1752336040264,4.6951,2917.2,2917.1,2.16347]
[1752336040664,5.38044,2917.2,2917.1,2.16347]
[1752336041160,5.38044,2917.2,2917.1,0.68537]
[1752336041459,4.6951,2917.0,2916.9,3.06829]
[1752336041659,4.6951,2917.0,2916.9,5.15929]
[1752336042565,3.7395,2917.0,2916.9,5.15929]
[1752336043360,2.5086,2917.2,2917.1,0.68537]
[1752336043563,4.6252,2917.2,2917.1,5.07857]
[1752336044066,5.31054,2917.2,2917.1,3.06827]
[1752336044369,4.6252,2917.2,2917.1,3.06827]
[1752336044762,5.31054,2917.2,2917.1,3.06827]
[1752336044963,4.6252,2917.2,2917.1,3.06827]
[1752336045167,5.31054,2917.2,2917.1,3.06827]
[1752336046664,5.31054,2917.2,2917.1,0.68537]
[1752336046864,3.2078,2917.4,2917.0,0.68537]
[1752336046865,5.1826,2917.1,2917.0,0.68537]
[1752336047067,4.4972,2916.9,2916.8,5.31651]
[1752336047266,4.4972,2916.9,2916.8,6.31521]
[1752336047662,4.92107,2917.4,2916.5,3.72405]
[1752336047663,3.06608,2916.8,2916.7,2.10875]
[1752336047867,4.4972,2916.8,2916.7,2.10875]
[1752336048064,5.18264,2916.8,2916.7,2.10875]
[1752336048769,5.18269,2916.6,2916.5,4.6311]
[1752336048969,5.18269,2916.6,2916.5,5.31659]
[1752336049670,5.18269,2916.6,2916.5,4.6311]
[1752336049858,5.18269,2916.6,2916.5,3.2078]
[1752336050465,1.71359,2916.9,2916.2,3.10755]
[1752336050466,4.4972,2916.3,2916.2,3.10755]
[1752336051165,4.4972,2916.3,2916.2,5.31668]
[1752336051365,4.4972,2916.3,2916.2,6.31538]
[1752336052970,5.18276,2916.3,2916.2,6.31538]
[1752336053365,4.4972,2916.3,2916.2,6.31538]
[1752336053670,4.4972,2916.3,2916.2,3.10758]
[1752336054865,5.18276,2916.3,2916.2,3.10758]
[1752336055366,4.4972,2916.0,2915.9,2.22743]
[1752336055565,4.4972,2916.0,2915.9,3.22613]
[1752336055766,4.4972,2916.0,2915.9,5.23643]
[1752336056271,4.4972,2916.0,2915.9,3.22613]
[1752336057968,5.18283,2916.0,2915.9,3.22613]
[1752336058163,4.4972,2916.0,2915.9,0.80413]
[1752336058472,5.18283,2916.0,2915.9,2.22743]
[1752336058672,4.4972,2916.0,2915.9,3.22613]
[1752336058971,4.4972,2916.0,2915.9,2.22743]
[1752336059167,5.18283,2916.0,2915.9,0.11848]
[1752336061369,4.4972,2916.0,2915.9,0.80413]
[1752336061571,5.18283,2916.0,2915.9,0.80413]
[1752336061876,3.5076,2916.4,2916.3,5.11786]
[1752336062271,4.19313,2916.4,2916.3,0.68556]
[1752336062575,5.18283,2916.0,2915.9,0.80413]
[1752336062974,4.4972,2916.0,2915.9,2.22743]
[1752336063170,4.4972,2916.0,2915.9,3.22613]
[1752336063370,4.4972,2916.0,2915.9,5.23643]
[1752336063766,5.18283,2916.0,2915.9,0.11848]
[1752336064176,5.18283,2916.0,2915.9,0.80413]
[1752336064376,4.4972,2916.0,2915.9,2.22743]
[1752336064673,4.4972,2916.0,2915.9,3.22613]
[1752336064874,5.18283,2916.0,2915.9,3.22613]
[1752336065373,5.18283,2916.0,2915.9,1.54178]
[1752336065676,5.18283,2916.0,2915.9,0.11848]
[1752336065874,5.18283,2916.0,2915.9,0.80413]
[1752336066077,4.4972,2916.0,2915.9,3.22613]
[1752336066271,5.18283,2916.0,2915.9,3.22613]
[1752336066676,5.18283,2916.0,2915.9,1.11718]
[1752336066878,5.18283,2916.0,2915.9,0.80413]
[1752336067171,5.18283,2916.0,2915.9,0.11848]
[1752336067371,5.18283,2916.0,2915.9,2.54048]
[1752336067570,5.18283,2916.0,2915.9,1.54178]
[1752336067972,5.18283,2916.0,2915.9,0.11848]
[1752336070967,1.391,2915.7,2915.4,3.2078]
[1752336071172,6.71409,2916.0,2915.4,3.10775]
[1752336071173,4.4972,2915.5,2915.4,3.10775]
[1752336071368,3.5076,2915.5,2915.4,3.10775]
[1752336071573,2.3806,2916.1,2916.0,0.68563]
[1752336071868,3.0662,2916.1,2916.0,3.10763]
[1752336072068,4.19325,2916.0,2915.9,0.68564]
[1752336072268,0.9896,2915.9,2915.8,3.10767]
[1752336072583,4.4972,2915.9,2915.8,3.10767]
[1752336072778,5.18285,2915.9,2915.8,1.4233]
[1752336072977,4.4972,2915.3,2915.2,6.31562]
[1752336073976,4.4972,2915.3,2914.9,4.2065]
[1752336074168,5.21746,2915.0,2914.9,4.5848]
[1752336074373,5.21746,2915.0,2914.9,8.20229]
[1752336074374,3.542,2915.0,2914.9,8.20229]
[1752336074573,4.5316,2915.3,2915.2,3.06152]
[1752336074773,5.21739,2915.3,2915.2,4.99442]
[1752336074974,5.21739,2915.3,2915.2,3.06152]
[1752336075279,5.21739,2915.3,2915.2,2.3757]
[1752336076178,1.4094,2915.1,2915.0,2.3054]
[1752336076379,5.21294,2915.1,2915.0,2.3054]
[1752336077181,5.21294,2915.1,2915.0,2.99126]
[1752336078482,4.5271,2915.1,2915.0,2.99126]
[1752336078670,5.21294,2915.1,2915.0,2.99126]
[1752336079476,4.5271,2915.1,2915.0,2.99126]
[1752336079880,5.21294,2915.1,2915.0,2.99126]
[1752336080081,4.5271,2915.1,2915.0,2.99126]
[1752336080680,5.21294,2915.1,2915.0,2.3054]
[1752336080977,3.80359,2915.0,2914.9,0.68587]
[1752336081176,5.21299,2915.0,2914.9,0.68587]
[1752336081378,5.21299,2915.0,2914.9,2.06287]
[1752336081575,5.21299,2915.0,2914.9,2.99127]
[1752336082280,4.5271,2915.0,2914.9,2.99127]
[1752336082477,4.5271,2915.3,2915.2,2.99122]
[1752336082676,4.5271,2915.3,2915.2,4.92412]
[1752336082878,5.21289,2915.3,2915.2,2.99122]
[1752336084176,5.21289,2915.3,2915.2,2.06282]
[1752336084372,3.1177,2915.1,2914.8,3.2078]
[1752336084672,5.21299,2914.9,2914.8,2.9913]
[1752336085473,5.21299,2914.9,2914.8,1.377]
[1752336086077,5.21299,2914.9,2914.8,2.06291]
[1752336086581,5.21299,2914.9,2914.8,0.68591]
[1752336086981,5.21299,2914.9,2914.8,2.06291]
[1752336087182,5.21299,2914.9,2914.8,0.68591]
[1752336087378,0.9851,2914.6,2914.3,0.9284]
[1752336087685,5.2131,2914.4,2914.3,2.3054]
[1752336088174,4.5271,2914.4,2914.3,2.99143]
[1752336088784,5.2131,2914.4,2914.3,2.99143]
[1752336089879,5.2131,2914.4,2914.2,3.2078]
[1752336089880,0.68603,2914.3,2914.2,3.2078]
[1752336090079,5.21313,2914.3,2914.2,3.2078]
[1752336091079,4.5271,2914.3,2914.2,5.27085]
[1752336091281,5.21313,2914.3,2914.2,6.19925]
[1752336091788,5.21313,2914.3,2914.2,5.5132]
[1752336091982,5.21313,2914.3,2914.2,4.5848]
[1752336093788,5.21313,2914.3,2914.2,3.2078]
[1752336093980,5.21317,2914.1,2914.0,2.3054]
[1752336094685,5.21317,2914.1,2914.0,2.9915]
[1752336094886,5.21317,2914.1,2914.0,4.9244]
[1752336095186,1.4094,2914.3,2914.2,1.377]
[1752336095486,1.4094,2914.3,2914.2,2.99145]
[1752336095487,5.21314,2914.3,2914.2,2.99145]
[1752336096286,5.21314,2914.3,2914.2,2.3054]
[1752336096681,5.21314,2914.3,2914.2,2.99145]
[1752336096881,2.1326,2914.3,2914.2,4.92435]
[1752336097085,4.5271,2914.6,2914.5,4.92428]
[1752336097984,5.21306,2914.6,2914.5,4.92428]
[1752336099385,5.21306,2914.6,2914.5,2.99138]
[1752336099590,5.21306,2914.6,2914.5,1.61438]
[1752336099789,5.21306,2914.6,2914.5,2.99138]
[1752336101694,5.21306,2914.6,2914.5,1.377]
[1752336101983,4.5271,2914.4,2914.3,4.92431]
[1752336102589,5.2131,2914.4,2914.3,4.92431]
[1752336102790,5.2131,2914.4,2914.3,2.99141]
[1752336102986,5.2131,2914.4,2914.3,1.377]
[1752336103189,3.08057,2914.1,2914.0,2.3054]
[1752336103388,5.14307,2914.1,2914.0,2.3054]
[1752336104296,5.14307,2914.1,2914.0,1.377]
[1752336104796,5.14307,2914.1,2914.0,2.0631]
[1752336105399,5.14307,2914.1,2914.0,2.9865]
[1752336105990,4.457,2914.1,2914.0,2.9865]
[1752336106297,5.14307,2914.1,2914.0,2.9865]
[1752336106992,5.14307,2914.1,2914.0,1.377]
[1752336107597,5.14307,2914.1,2914.0,2.9865]
[1752336109198,2.0625,2914.1,2914.0,4.8414]
[1752336109604,2.74856,2914.2,2914.1,2.14377]
[1752336109896,2.74855,2914.2,2914.1,4.92207]
[1752336110097,4.16075,2914.2,2914.1,4.92207]
[1752336110292,4.16075,2914.2,2914.1,3.06717]
[1752336110293,5.13965,2914.2,2914.1,3.06717]
[1752336111799,5.13965,2914.2,2914.1,2.3811]
[1752336112001,5.13965,2914.2,2914.1,3.06717]
[1752336112501,4.4536,2914.2,2914.1,4.92207]
[1752336112701,5.13965,2914.2,2914.1,4.92207]
[1752336112995,5.13965,2914.2,2914.1,3.06717]
[1752336113500,5.13965,2914.2,2914.1,2.3811]
[1752336113701,5.13965,2914.2,2914.1,1.4577]
[1752336114104,5.13965,2914.2,2913.9,4.1312]
[1752336114105,5.1397,2914.0,2913.9,4.6655]
[1752336114897,4.16084,2913.8,2913.7,2.3811]
[1752336115103,5.13974,2913.8,2913.7,1.4577]
[1752336115299,2.09839,2913.6,2913.5,2.3811]
[1752336115503,5.13986,2913.3,2913.2,3.06737]
[1752336115905,4.4536,2913.3,2913.2,3.06737]
[1752336116603,5.13986,2913.3,2913.2,3.06737]
[1752336116898,4.4536,2913.3,2913.2,4.92227]
[1752336117108,4.4536,2913.6,2913.5,3.06732]
[1752336117904,5.13981,2913.6,2913.5,3.06732]
[1752336118198,4.4536,2913.6,2913.5,3.06732]
[1752336118398,3.2078,2913.8,2913.7,4.92217]
[1752336118598,3.2078,2914.5,2914.1,1.4577]
[1752336118807,5.5989,2914.5,2914.4,3.0671]
[1752336119104,8.34738,2914.5,2914.4,3.0671]
[1752336119308,7.6614,2914.5,2914.4,3.0671]
[1752336119602,8.34738,2914.5,2914.4,3.0671]
[1752336119803,1.4122,2914.6,2914.5,0.68597]
[1752336120099,4.4536,2914.5,2914.4,3.06709]
[1752336120497,4.4536,2914.1,2913.9,0.9234]
[1752336120800,1.71478,2914.8,2913.6,1.60957]
[1752336120801,3.0414,2913.9,2913.6,1.60957]
[1752336121099,0.68622,2913.5,2913.4,4.6655]
[1752336121307,5.13982,2913.5,2913.4,3.2078]
[1752336122201,0.68626,2913.3,2913.2,2.14398]
[1752336122396,4.4536,2913.3,2913.2,3.06739]
[1752336123007,4.4536,2913.6,2913.5,3.06732]
[1752336124205,4.4536,2913.6,2913.5,4.92222]
[1752336124405,3.4747,2913.6,2913.5,4.92222]
[1752336124706,3.07722,2913.9,2913.8,2.3811]
[1752336125106,5.13972,2913.9,2913.8,2.3811]
[1752336125410,5.13972,2913.9,2913.8,3.06724]
[1752336126005,5.13972,2913.9,2913.8,1.4577]
[1752336126208,5.13972,2913.9,2913.8,2.14384]
[1752336126610,5.13972,2913.9,2913.8,1.4577]
[1752336127110,4.4536,2913.6,2913.5,0.6862]
[1752336127607,3.07732,2913.5,2913.4,5.35172]
[1752336127807,5.13982,2913.5,2913.4,5.35172]
[1752336128104,5.13982,2913.5,2913.4,2.14392]
[1752336128809,4.4536,2913.5,2913.4,3.06732]
[1752336129012,3.4747,2913.5,2913.4,8.13002]
[1752336129910,5.13982,2913.5,2913.4,6.27512]
[1752336130111,4.4536,2913.5,2913.4,6.27512]
[1752336130412,5.13982,2913.5,2913.4,6.27512]
[1752336130608,3.07734,2913.4,2913.3,2.14395]
[1752336130809,5.13984,2913.4,2913.3,2.14395]
[1752336131507,2.09846,2913.3,2913.2,0.68627]
[1752336131714,5.13986,2913.3,2913.2,2.14397]
[1752336132514,5.13986,2913.3,2913.2,0.68627]
[1752336133108,5.13986,2913.3,2913.2,2.14397]
[1752336133816,2.04685,2913.0,2912.9,3.03364]
[1752336134116,5.01155,2913.0,2912.9,3.03364]
[1752336134605,5.01155,2913.0,2912.9,1.4239]
[1752336135408,2.04688,2912.8,2912.7,5.5551]
[1752336135609,4.97098,2912.8,2912.7,6.2415]
[1752336136110,4.97098,2912.8,2912.7,4.6317]
[1752336136615,4.97098,2912.8,2912.7,6.2602]
[1752336137922,4.2846,2912.8,2912.7,6.2602]
[1752336138117,1.9858,2912.8,2912.7,8.0384]
[1752336138324,0.68636,2912.9,2912.8,0.68638]
[1752336138523,2.67216,2912.9,2912.8,3.05238]
[1752336138726,2.67216,2912.9,2912.8,4.83058]
[1752336139018,3.3463,2912.9,2912.8,4.83058]
[1752336139625,4.03266,2912.9,2912.8,4.83058]
[1752336139823,4.97096,2912.9,2912.8,1.4239]
[1752336141121,4.97098,2912.8,2912.7,3.89419]
[1752336141725,4.97098,2912.8,2912.7,4.6317]
[1752336141926,2.04693,2912.6,2912.5,2.11034]
[1752336142130,4.97105,2912.5,2912.4,3.89426]
[1752336142428,4.97105,2912.5,2912.4,6.26026]
[1752336143827,4.97105,2912.5,2912.4,5.5738]
[1752336144122,3.3463,2912.1,2912.0,7.09647]
[1752336144529,3.3463,2912.1,2912.0,8.03857]
[1752336144831,3.3463,2912.1,2912.0,6.26037]
[1752336145028,4.2846,2912.1,2912.0,6.26037]
[1752336145621,4.2846,2912.1,2912.0,8.03857]
[1752336145829,4.2846,2912.1,2912.0,6.26037]
[1752336146333,3.3463,2912.1,2912.0,8.03857]
[1752336146732,4.2846,2912.1,2912.0,8.03857]
[1752336146931,3.3463,2912.1,2912.0,8.03857]
[1752336147227,1.9858,2912.1,2912.0,8.03857]
[1752336147723,0.9383,2912.4,2912.0,8.03857]
[1752336147724,2.2988,2912.4,2912.3,3.0525]
[1752336147920,2.98527,2912.4,2912.3,3.0525]
[1752336148125,2.98527,2912.4,2912.3,1.4239]
[1752336148329,4.97107,2912.4,2912.3,1.4239]
[1752336148523,4.2846,2912.4,2912.2,0.6865]
[1752336148730,1.3605,2912.2,2912.0,3.89436]
[1752336148929,2.98535,2912.1,2912.0,5.31826]
[1752336149129,4.97115,2912.1,2912.0,5.31826]
[1752336149729,4.97115,2912.1,2912.0,3.2078]
[1752336149931,2.04709,2912.0,2911.9,0.68658]
[1752336150126,4.92396,2912.5,2911.8,27.09161]
[1752336150127,2.04709,2911.9,2911.8,27.09161]
[1752336150337,4.97119,2911.9,2911.8,3.05261]
[1752336150636,4.97119,2911.9,2911.8,2.11051]
[1752336150831,2.04712,2911.8,2911.7,3.89442]
[1752336151031,4.97122,2911.8,2911.7,0.68662]
[1752336151629,2.04714,2911.7,2911.6,3.05264]
[1752336151832,4.2846,2911.7,2911.6,3.05264]
[1752336152031,4.2846,2911.7,2911.6,4.83084]
[1752336152231,1.9858,2911.7,2911.6,4.83084]
[1752336152733,2.2988,2912.3,2912.2,1.4239]
[1752336153037,3.3463,2912.3,2912.2,7.04861279]
[1752336153535,4.2846,2912.3,2912.2,7.04861279]
[1752336154035,4.2846,2912.3,2912.2,3.05252]
[1752336155436,4.9711,2912.3,2912.2,0.68652]
[1752336155828,4.96744681,2912.3,2912.2,0.68652]
[1752336156333,4.97116,2912.1,2912.0,0.68653]
[1752336157233,4.2846,2912.1,2912.0,0.68653]
[1752336157437,4.2846,2912.1,2912.0,2.11043]
[1752336157638,4.2846,2912.1,2912.0,3.05253]
[1752336158138,3.3463,2912.3,2912.2,4.1478]
[1752336158339,3.3463,2912.3,2912.2,4.83432]
[1752336158538,4.2846,2912.3,2912.2,4.83432]
[1752336159034,3.3463,2912.3,2912.2,4.83432]
[1752336159241,4.2846,2912.6,2912.5,4.83425]
[1752336159436,2.2988,2913.1,2913.0,3.05233]
[1752336159629,2.2988,2913.1,2913.0,4.83413]
[1752336160033,4.2846,2913.1,2913.0,4.83413]
[1752336160435,1.3605,2913.4,2913.3,2.11016]
[1752336160640,2.2988,2913.7,2913.6,2.11009]
[1752336160834,3.16520567,2913.7,2913.6,2.11009]
[1752336161036,3.16520567,2913.7,2913.6,5.03389]
[1752336161037,0.86640567,2913.7,2913.6,5.03389]
[1752336161831,3.16520567,2913.7,2913.6,3.05219]
[1752336162033,3.16535918,2913.7,2913.6,0.68619]
[1752336162240,1.3605,2913.4,2913.3,31.33066]
[1752336162436,1.9858,2913.6,2913.5,1.4239]
[1752336162635,0.86685595,2913.6,2913.5,4.09182]
[1752336162841,4.42536085,2914.3,2914.2,3.05205]
[1752336163036,1.21756085,2914.5,2914.4,2.6677]
[1752336163239,2.57806085,2914.5,2914.4,5.0337]
[1752336163541,4.2618,2914.5,2914.4,3.052]
[1752336163732,5.47699189,2914.5,2914.4,3.052]
[1752336163937,5.47699527,2914.5,2914.4,3.052]
[1752336164240,5.47702215,2914.5,2914.4,3.052]
[1752336164640,4.2618,2914.5,2914.4,3.052]
[1752336164839,4.2618,2914.5,2914.4,2.1099]
[1752336165542,4.2618,2914.5,2914.4,3.0746]
[1752336165742,3.3235,2914.5,2914.4,5.1069]
[1752336165942,4.53846395,2914.5,2914.4,5.1069]
[1752336166136,4.53846395,2914.5,2914.2,2.21789279]
[1752336166137,1.21496395,2914.6,2914.5,5.11148]
[1752336166337,3.2078,2914.7,2914.6,3.07916]
[1752336166338,4.42276395,2914.7,2914.6,3.07916]
[1752336166639,3.2078,2914.7,2914.6,5.11146]
[1752336166844,3.17796395,2914.8,2914.7,5.11143]
[1752336167141,1.963,2914.8,2914.7,5.11143]
[1752336167447,1.963,2914.8,2914.5,2.21789279]
[1752336167448,5.1708,2915.0,2914.9,5.11139]
[1752336167740,3.2078,2915.0,2914.9,5.11139]
[1752336168437,2.8732,2915.2,2915.1,2.11434]
[1752336168438,4.2326,2915.2,2915.1,2.11434]
[1752336168645,4.42276395,2915.4,2915.2,1.4285]
[1752336168837,7.4404,2915.4,2915.3,3.07899]
[1752336169037,3.48456395,2915.7,2915.6,1.4285]
[1752336169240,2.2696,2915.7,2915.6,3.07892]
[1752336169743,4.2326,2915.7,2915.6,2.3932]
[1752336170041,3.3224,2915.1,2915.0,5.11136]
[1752336170237,1.3594,2915.6,2915.5,0.68574]
[1752336170542,1.3594,2915.5,2915.4,3.07895]
[1752336170746,4.2326,2915.5,2915.4,3.07895]
[1752336171142,4.2326,2915.5,2915.4,5.11125]
[1752336171337,4.2326,2915.7,2915.6,3.07892]
[1752336171538,4.2326,2915.7,2915.6,2.3932]
[1752336171742,1.3594,2915.2,2915.1,2.3932]
[1752336171939,4.2326,2915.2,2915.1,3.07904]
[1752336172345,3.3224,2915.2,2915.1,5.11134]
[1752336172545,1.3594,2915.4,2915.3,2.11427]
[1752336172738,4.2326,2915.4,2915.3,3.07897]
[1752336172935,1.3594,2915.7,2915.6,1.4285]
[1752336173134,1.3594,2915.7,2915.6,2.3932]
[1752336173647,4.9183,2915.7,2915.6,2.3932]
[1752336174047,4.9183,2915.7,2915.6,1.4285]
[1752336174239,4.2326,2915.5,2915.1,2.71813]
[1752336174546,4.9184,2915.3,2915.2,2.3932]
[1752336175338,4.9184,2915.3,2915.2,1.4285]
[1752336175643,3.3224,2915.0,2914.9,5.11139]
[1752336175945,1.963,2915.1,2915.0,4.4255]
[1752336176345,3.3224,2915.5,2915.4,5.11127]
[1752336176542,4.2326,2915.5,2915.4,3.07897]
[1752336176944,4.2326,2915.5,2915.4,5.11127]
[1752336177141,3.3224,2915.5,2915.4,5.11127]
[1752336177543,1.963,2915.7,2915.6,5.11122]
[1752336177839,3.3224,2915.9,2915.8,5.11115]